bitfinex/quotes_ETHUSD_20250115
["timestamp","ask_amount","ask_price","bid_price","bid_amount"]
[1736958095432,0.02980968,3353.3,3352.7,0.05158994]
[1736958095641,2.98256,3352.9,3352.7,0.05158994]
[1736958095803,2.98222,3353.2,3352.6,0.21]
[1736958095804,0.298256,3352.8,3352.6,0.21]
[1736958096003,2.98226,3353.2,3352.6,0.21]
[1736958096298,3.578452,3353.4,3352.7,0.05158994]
[1736958096705,0.62602622,3353.3,3352.7,0.05158994]
[1736958097759,3.60816622,3353.3,3352.7,0.05158994]
[1736958098460,2.98204,3353.5,3352.7,0.05158994]
[1736958098624,3.0,3353.8,3352.6,3.19273]
[1736958099075,3.0,3353.8,3352.7,0.05158994]
[1736958099583,2.98199,3353.5,3352.7,0.05158994]
[1736958099953,2.98241,3353.0,3352.7,0.05158994]
[1736958100288,0.298241,3352.9,3352.3,0.21]
[1736958100432,3.280751,3352.9,3352.4,0.04912025]
[1736958100637,2.98251,3352.9,3352.4,0.04912025]
[1736958100931,2.98251,3352.9,3352.4,0.21]
[1736958101152,0.7658,3353.4,3352.5,0.04909916]
[1736958101352,6.47291714,3352.6,3352.5,0.04909916]
[1736958101584,6.47291714,3352.6,3351.0,2.0]
[1736958101585,3.49016714,3352.6,3351.5,8.10886837]
[1736958101790,2.98265,3352.8,3351.5,8.10886837]
[1736958101791,2.98239,3353.1,3351.6,0.23982802]
[1736958102102,2.98239,3353.1,3352.1,2.9832]
[1736958102404,2.98239,3353.1,3352.2,0.04937325]
[1736958102606,3.49016714,3353.3,3352.3,5.15496462]
[1736958102753,3.49016714,3353.3,3352.4,0.52043379]
[1736958102950,3.49016714,3353.3,3352.5,2.98283]
[1736958103351,3.0,3353.7,3352.6,0.0493183]
[1736958103688,3.0,3353.7,3352.7,0.21]
[1736958103891,2.98144,3354.1,3353.1,2.98231]
[1736958104069,6.77359294,3354.3,3353.2,3.01198831]
[1736958104273,6.77359294,3354.3,3353.2,3.03118528]
[1736958105265,3.79233294,3354.3,3353.2,0.04901528]
[1736958105516,2.98093,3354.7,3353.3,8.13705363]
[1736958105653,3.79233294,3354.8,3353.8,2.98168]
[1736958105853,3.79233294,3354.8,3353.9,0.25849034]
[1736958106088,6.77314294,3354.8,3353.9,0.25849034]
[1736958106387,3.79233294,3354.8,3353.9,0.25849034]
[1736958106785,2.98112,3354.5,3353.9,0.25849034]
[1736958106995,0.30109297,3354.4,3353.9,0.25849034]
[1736958107155,2.98117,3354.4,3353.9,0.25849034]
[1736958108058,3.79233294,3354.8,3353.9,0.25849034]
[1736958108306,6.77315294,3354.8,3353.9,0.25849034]
[1736958108468,2.98061,3355.1,3354.0,3.01131111]
[1736958108675,2.98061,3355.1,3354.1,0.0483159]
[1736958108862,2.98061,3355.1,3354.2,35.0]
[1736958109059,3.79233294,3355.3,3354.3,0.04818558]
[1736958109260,3.79233294,3355.3,3354.3,8.15455395]
[1736958110212,3.79233294,3355.3,3354.3,5.17332395]
[1736958110391,3.35969329,3355.2,3354.3,5.17332395]
[1736958110712,3.79233294,3355.3,3354.3,5.17332395]
[1736958110871,2.98069,3355.0,3354.3,5.17332395]
[1736958111380,2.98055,3355.1,3354.3,5.17332395]
[1736958111713,3.79233294,3355.3,3354.3,5.17332395]
[1736958111714,2.98081,3354.8,3354.3,5.17332395]
[1736958111862,3.79233294,3355.3,3354.3,5.17332395]
[1736958112065,2.98073,3354.9,3354.3,5.17332395]
[1736958112431,2.9811,3354.5,3354.3,5.17332395]
[1736958112627,3.79233294,3354.8,3354.0,0.21]
[1736958112833,2.98126,3354.3,3354.0,0.21]
[1736958113080,2.98126,3354.3,3354.1,0.04729194]
[1736958113287,2.98126,3354.3,3353.8,0.21]
[1736958113447,2.98141,3354.2,3353.8,0.21]
[1736958113636,2.98141,3354.2,3353.9,0.04579033]
[1736958113831,3.79233294,3354.8,3353.9,0.04579033]
[1736958113832,3.79233294,3354.8,3353.9,3.02731033]
[1736958114071,0.67726329,3355.2,3353.9,5.1709287]
[1736958114271,6.77272294,3355.3,3354.2,2.9813]
[1736958114583,6.77272294,3355.3,3354.3,0.04590688]
[1736958114895,6.77271294,3355.3,3354.4,35.0]
[1736958115033,2.98058,3355.1,3354.4,35.0]
[1736958115383,6.77270294,3355.3,3354.5,0.04586475]
[1736958115533,2.98098,3354.6,3354.5,0.04586475]
[1736958115740,3.279078,3354.6,3354.5,0.04586475]
[1736958116037,3.30888768,3354.6,3354.5,0.04586475]
[1736958116237,0.298098,3354.6,3353.8,0.21]
[1736958116459,2.9812,3354.4,3353.8,0.21]
[1736958116674,2.9812,3354.4,3353.9,0.04265662]
[1736958116847,3.82214262,3354.3,3353.9,0.04265662]
[1736958117068,2.98151,3354.0,3353.9,0.04265662]
[1736958117230,3.79233294,3354.3,3353.6,0.2077]
[1736958117451,0.3279298,3354.4,3353.6,35.0]
[1736958117641,4.62133294,3354.8,3353.7,0.25157173]
[1736958117933,2.9809,3354.7,3353.8,2.98162]
[1736958118150,3.79233294,3354.8,3353.9,0.04164226]
[1736958118371,3.79233294,3354.8,3354.0,2.98146]
[1736958118593,3.79233294,3354.8,3353.7,0.21]
[1736958118770,3.0,3355.3,3353.7,0.21]
[1736958118771,3.79233294,3355.3,3354.1,0.04159031]
[1736958118950,3.79233294,3355.8,3354.5,5.12513837]
[1736958119288,3.79233294,3355.8,3354.6,5.12513837]
[1736958119440,2.98021,3355.5,3354.6,5.16643229]
[1736958119641,2.98043,3355.3,3354.6,5.16643229]
[1736958120008,2.98063,3355.0,3354.6,5.16643229]
[1736958120139,2.98063,3355.0,3354.7,0.21]
[1736958120483,2.98089,3354.7,3354.6,0.04129392]
[1736958120634,3.79233294,3354.8,3354.1,0.21]
[1736958120833,6.77316294,3354.8,3354.1,0.21]
[1736958121079,3.79233294,3354.8,3354.1,0.21]
[1736958121279,3.57109569,3355.5,3354.1,0.21]
[1736958121280,2.98062,3355.1,3354.1,0.21]
[1736958121434,3.0,3355.2,3354.1,0.21]
[1736958121435,6.77269294,3355.3,3354.2,5.12513837]
[1736958121630,3.79233294,3355.3,3354.3,5.12513837]
[1736958121868,2.9797,3356.1,3355.1,2.98051]
[1736958122091,2.97991,3355.8,3355.2,0.21]
[1736958122286,3.65697329,3356.0,3355.2,0.21]
[1736958122587,2.97992,3355.8,3355.2,0.21]
[1736958122894,3.79233294,3356.3,3355.2,0.21]
[1736958123057,2.9796,3356.2,3355.2,3.19041]
[1736958123384,4.55239523,3356.3,3355.3,2.98033]
[1736958123596,6.77139294,3356.8,3355.8,5.12513837]
[1736958123804,6.77136294,3356.8,3355.8,5.12513837]
[1736958124009,2.97947,3356.3,3355.8,5.12513837]
[1736958124168,2.97963,3356.2,3355.8,5.12513837]
[1736958124505,0.297963,3356.1,3355.5,5.12513837]
[1736958124708,2.97965,3356.1,3355.5,5.12513837]
[1736958125026,3.79233294,3356.8,3355.7,5.12513837]
[1736958125352,2.97873,3357.2,3356.2,8.10465837]
[1736958125663,4.3844922,3357.3,3356.4,5.12513837]
[1736958125664,2.97876,3357.1,3356.4,5.12513837]
[1736958125915,6.77092294,3357.3,3356.5,0.209]
[1736958126071,3.73796229,3357.2,3356.6,35.0]
[1736958127173,3.73796229,3357.2,3356.5,0.209]
[1736958127174,0.75928229,3357.2,3356.5,0.209]
[1736958127488,3.79233294,3357.5,3356.1,0.209]
[1736958127489,2.97915,3356.7,3356.1,0.209]
[1736958127691,3.79233294,3357.0,3356.1,0.209]
[1736958127896,2.97893,3356.9,3356.1,0.209]
[1736958128053,2.97928,3356.6,3356.1,0.209]
[1736958128254,3.575101,3356.6,3356.1,0.209]
[1736958129089,0.595821,3356.6,3356.1,0.209]
[1736958129292,2.97912,3356.7,3356.1,0.209]
[1736958129710,2.97922,3356.6,3356.1,0.209]
[1736958130009,2.97902,3356.8,3356.1,0.209]
[1736958130177,3.79233294,3357.0,3356.1,0.209]
[1736958130890,2.97923,3356.6,3356.1,0.209]
[1736958131092,3.79233294,3357.0,3356.1,0.209]
[1736958131279,2.97902,3356.9,3356.1,0.209]
[1736958131480,2.97878,3357.1,3356.1,5.33413837]
[1736958131684,6.77081294,3357.5,3356.3,2.97944]
[1736958131883,3.79233294,3358.0,3356.6,5.12513837]
[1736958132090,0.15399041,3358.4,3356.7,35.54527588]
[1736958132396,0.005,3358.4,3357.5,5.12513837]
[1736958132594,0.005,3358.4,3357.6,5.12513837]
[1736958132785,0.03480968,3358.4,3357.7,0.209]
[1736958132983,0.005,3358.4,3357.7,0.209]
[1736958133200,0.005,3358.4,3357.8,3.0434223]
[1736958133412,0.005,3358.4,3357.9,0.02977386]
[1736958133608,0.005,3358.4,3358.0,2.97793]
[1736958133902,0.005,3358.4,3358.0,0.03545891]
[1736958134203,0.005,3358.4,3358.2,2.97777]
[1736958134566,0.005,3358.4,3358.3,5.16033383]
[1736958135173,0.005,3358.4,3358.3,40.16033383]
[1736958136213,0.005,3358.4,3358.3,38.01288546]
[1736958136709,0.005,3358.4,3358.3,40.01288546]
[1736958139521,0.005,3358.4,3358.3,45.13802383]
[1736958141008,0.005,3358.4,3358.3,48.68802383]
[1736958141213,1e-05,3358.4,3358.3,48.68802383]
[1736958141778,1e-05,3358.4,3358.3,49.27426073]
[1736958142413,2.84691048,3360.8,3359.7,2.0]
[1736958142639,2.84691048,3360.8,3360.7,2.97557]
[1736958142853,2.84691048,3360.8,3360.7,3.18457]
[1736958143014,2.84691048,3360.8,3360.7,43.76605378]
[1736958143200,2.37658871,3360.8,3360.7,43.76605378]
[1736958143534,2.37658871,3360.8,3360.7,38.03148378]
[1736958143736,2.37658871,3360.8,3360.7,41.21605378]
[1736958143944,2.37658871,3360.8,3360.7,35.83083316]
[1736958144146,2.37658871,3360.8,3360.7,35.24048378]
[1736958144442,2.37658871,3360.8,3360.7,0.24048378]
[1736958145745,2.37658871,3360.8,3360.7,3.21605378]
[1736958145953,2.37658871,3360.8,3360.7,3.53765916]
[1736958146977,0.54503807,3361.0,3360.8,3.52548]
[1736958147127,0.00364883,3361.7,3360.8,3.52548]
[1736958147128,0.00364883,3361.7,3361.6,2.97477]
[1736958147320,0.1752123,3362.5,3361.9,2.97444]
[1736958147514,0.1752123,3362.5,3362.0,0.23965458]
[1736958147723,0.1752123,3362.5,3362.0,3.21406458]
[1736958147957,0.1752123,3362.5,3362.1,0.209]
[1736958148268,0.1752123,3362.5,3362.2,0.03061264]
[1736958148618,2.97415,3362.3,3362.2,0.03061264]
[1736958148931,3.36773623,3362.3,3362.2,0.03061264]
[1736958149117,0.39358623,3362.3,3361.7,0.209]
[1736958149319,0.9517123,3362.5,3361.7,0.209]
[1736958149519,2.97428,3362.2,3361.7,0.209]
[1736958149752,0.1752123,3362.5,3361.7,2.209]
[1736958149950,0.1752123,3362.5,3362.2,2.97422]
[1736958150223,0.1752123,3362.5,3362.3,0.02823042]
[1736958150732,0.1752123,3362.5,3361.7,2.209]
[1736958151055,0.1752123,3362.5,3361.8,3.81553854]
[1736958151352,0.1752123,3362.5,3362.1,2.97428]
[1736958151552,0.7815,3362.4,3362.2,0.02893123]
[1736958151727,3.75557,3362.4,3362.0,0.209]
[1736958151937,2.97416,3362.3,3362.1,0.02886502]
[1736958152135,0.7815,3362.4,3362.0,0.209]
[1736958152436,0.005,3362.4,3362.0,0.209]
[1736958152634,0.7765,3362.3,3360.7,0.32160538]
[1736958152839,0.7765,3362.3,3360.8,0.209]
[1736958152840,2.97472,3361.7,3360.8,0.209]
[1736958153028,0.7765,3361.6,3360.9,0.209]
[1736958153222,0.7765,3361.6,3360.0,2.0]
[1736958153223,2.97495,3361.4,3360.2,2.97601]
[1736958153434,2.97495,3361.4,3360.3,3.18489]
[1736958153758,2.97511,3361.3,3360.1,2.97602]
[1736958153927,0.7765,3361.6,3360.4,0.209]
[1736958154129,2.97507,3361.3,3360.4,0.209]
[1736958154357,0.02980968,3361.2,3359.6,2.0]
[1736958154553,2.97521,3361.1,3359.8,0.60538376]
[1736958154861,2.97587,3360.4,3359.9,0.209]
[1736958155162,2.97503,3361.4,3359.9,0.209]
[1736958155336,2.97503,3361.4,3360.0,2.97619]
[1736958155337,0.7662,3361.4,3360.0,2.97619]
[1736958155663,0.7662,3361.4,3360.1,2.0]
[1736958155823,0.7662,3361.4,3359.9,3.209]
[1736958156028,0.7662,3361.4,3360.5,2.97571]
[1736958156228,0.7662,3361.4,3360.1,2.0]
[1736958156229,0.7662,3361.4,3360.3,2.9759]
[1736958156429,2.97512,3361.3,3360.2,2.97601]
[1736958156628,0.7662,3361.4,3360.4,2.9758]
[1736958156942,0.7662,3361.4,3360.5,0.29758]
[1736958157953,0.7662,3361.4,3360.4,2.97581]
[1736958158531,0.7662,3361.4,3360.5,0.60270349]
[1736958158733,0.7662,3361.4,3360.6,0.209]
[1736958158734,3.74122,3361.4,3360.6,0.209]
[1736958159061,2.9752,3361.2,3360.6,0.209]
[1736958159235,2.9752,3361.2,3360.0,0.818531]
[1736958159236,2.97514,3361.2,3360.0,0.818531]
[1736958159435,2.97515,3361.2,3360.1,3.5669131]
[1736958159863,2.97504,3361.3,3360.2,2.97601]
[1736958160161,2.97513,3361.2,3360.2,2.97601]
[1736958160324,0.7662,3361.4,3360.2,2.97601]
[1736958160531,2.9752,3361.2,3360.1,4.19892819]
[1736958160831,2.97503,3361.3,3360.2,0.71750982]
[1736958161064,2.97542,3360.9,3360.0,3.0]
[1736958161269,2.97523,3361.1,3360.1,0.209]
[1736958161470,2.97531,3361.0,3360.1,0.209]
[1736958162477,2.97531,3361.0,3360.1,0.8881528]
[1736958162771,2.97543,3360.9,3360.1,0.8881528]
[1736958162979,2.97514,3361.2,3360.1,0.8881528]
[1736958163179,2.97524,3361.1,3360.1,3.8642428]
[1736958164245,2.97524,3361.1,3360.2,0.209]
[1736958164557,2.97165251,3361.1,3360.2,0.95605308]
[1736958165107,0.8062,3361.9,3360.2,0.95605308]
[1736958165262,2.97479,3361.6,3360.2,0.95605308]
[1736958165650,2.97479,3361.6,3360.4,2.97576]
[1736958165852,0.8062,3361.9,3360.5,0.02975145]
[1736958166163,0.1752123,3362.5,3361.5,2.97479]
[1736958166364,0.1752123,3362.5,3361.6,0.209]
[1736958166564,0.1752123,3362.5,3362.1,2.97424]
[1736958167039,0.1752123,3362.5,3362.2,2.97422]
[1736958167439,0.1752123,3362.5,3361.8,4.97459]
[1736958167440,0.1752123,3362.5,3362.0,2.9744]
[1736958167640,0.1752123,3362.5,3362.1,2.97431]
[1736958168249,0.1752123,3362.5,3362.2,0.209]
[1736958168664,0.8062,3362.3,3361.4,0.59778206]
[1736958168896,3.78037,3362.3,3362.1,0.209]
[1736958169097,0.8062,3362.3,3362.1,0.209]
[1736958169406,0.1752123,3362.5,3362.1,0.209]
[1736958171214,0.1752123,3362.5,3362.1,3.18332]
[1736958171520,0.1752123,3362.5,3362.2,0.318332]
[1736958171874,0.1752123,3362.5,3362.1,0.209]
[1736958172291,0.1752123,3362.5,3362.3,2.97415]
[1736958172641,0.1752123,3362.5,3362.1,3.1833]
[1736958172808,0.1752123,3362.5,3362.1,0.209]
[1736958172985,0.1752123,3362.5,3362.1,3.18333]
[1736958173185,0.1752123,3362.5,3362.3,2.97415]
[1736958173387,0.1752123,3362.5,3362.3,5.97415]
[1736958174210,0.1752123,3362.5,3362.3,6.52415]
[1736958174729,1.645496,3362.8,3362.7,2.9738]
[1736958174880,1.645496,3362.8,3362.7,4.32118]
[1736958175199,1e-05,3363.4,3363.3,3.52327]
[1736958175380,1e-05,3363.4,3363.3,9.52799225]
[1736958175577,0.0036465,3363.9,3363.8,4.97282]
[1736958175780,6.5e-06,3363.9,3363.8,9.317403]
[1736958176191,0.8196,3366.8,3364.8,2.0]
[1736958176380,0.02980968,3366.3,3364.9,0.209]
[1736958176576,1.1992709,3365.9,3365.1,2.97166]
[1736958176781,1.1992709,3365.9,3365.1,0.318066]
[1736958176981,1.1992709,3365.9,3365.4,2.97136]
[1736958177232,1.1992709,3365.9,3365.4,2.0]
[1736958177376,0.38637977,3365.9,3365.4,2.0]
[1736958177579,0.38637977,3365.9,3365.5,0.209]
[1736958177780,0.8196,3366.9,3365.5,0.209]
[1736958178245,2.97037,3366.6,3365.5,3.18031]
[1736958178453,3.7897,3366.9,3365.6,0.209]
[1736958178738,2.97026,3366.7,3365.6,0.209]
[1736958178883,2.97026,3366.7,3365.1,0.318066]
[1736958179082,2.97043,3366.6,3365.4,2.97139]
[1736958179681,2.97029,3366.7,3365.5,2.97129]
[1736958179883,2.97029,3366.7,3365.5,2.97132]
[1736958180543,0.02980968,3366.8,3365.2,0.73481829]
[1736958180683,2.97064,3366.3,3365.0,4.97168]
[1736958180879,2.97064,3366.3,3365.1,0.212]
[1736958181132,2.97064,3366.3,3365.2,3.0]
[1736958181339,2.97047,3366.5,3365.3,2.97147]
[1736958181521,4.616076,3366.4,3365.3,2.97147]
[1736958181841,1.86e-06,3365.7,3365.6,5.97123]
[1736958182036,1.86e-06,3365.7,3365.6,7.11936855]
[1736958182184,4.16e-06,3365.8,3365.7,6.52115]
[1736958182390,4.16e-06,3365.8,3365.7,9.49415]
[1736958182671,1.645496,3366.4,3366.3,4.97062]
[1736958182793,1.26001537,3368.2,3367.4,2.96963]
[1736958182994,1.26001537,3368.2,3367.5,0.212]
[1736958183184,1.26001537,3368.2,3367.4,2.96963]
[1736958183385,1.26001537,3368.2,3367.5,0.212]
[1736958183727,1.26001537,3368.2,3367.6,2.96946]
[1736958183957,1.67306148,3368.2,3367.7,0.212]
[1736958184105,2.96904,3368.1,3367.8,0.212]
[1736958184286,2.96912,3368.0,3367.5,0.212]
[1736958184487,1.67306148,3368.2,3367.5,0.212]
[1736958184688,1.26001537,3368.2,3367.5,0.212]
[1736958185118,1.26001537,3368.2,3367.7,2.96936]
[1736958185326,1.26001537,3368.2,3367.6,0.8017]
[1736958185539,1.26001537,3368.2,3367.8,2.96921]
[1736958185737,1.26001537,3368.2,3368.1,2.96903]
[1736958186851,1.26001537,3368.2,3368.1,3.18103]
[1736958187006,1.26001537,3368.2,3368.1,0.212]
[1736958187522,1.67306148,3368.2,3367.0,1.39975917]
[1736958187830,1.67306148,3368.2,3367.1,3.1819]
[1736958188126,1.67306148,3368.2,3367.2,2.96979]
[1736958188523,1.67306148,3368.2,3367.0,0.8017]
[1736958188689,0.53140072,3368.1,3367.1,3.1819]
[1736958188889,0.53140072,3368.1,3367.2,2.96974]
[1736958189131,0.53140072,3368.1,3367.3,0.212]
[1736958189490,1.26001537,3368.2,3368.1,2.96903]
[1736958190624,9.02e-06,3368.3,3368.2,4.96894]
[1736958190987,1.09e-06,3368.4,3368.3,4.32055]
[1736958191191,0.1702123,3369.2,3368.3,4.32055]
[1736958191192,8.33e-06,3369.0,3368.9,2.96832]
[1736958192428,8.33e-06,3369.0,3368.9,3.18032]
[1736958192952,8.33e-06,3369.0,3368.9,6.98202]
[1736958193450,8.33e-06,3369.0,3368.9,0.212]
[1736958193612,8.33e-06,3369.0,3368.9,3.18032]
[1736958193812,8.33e-06,3369.0,3368.9,4.53202]
[1736958193994,8.33e-06,3369.0,3368.9,10.50202]
[1736958194292,8.33e-06,3369.0,3368.9,3.98202]
[1736958194495,8.33e-06,3369.0,3368.9,3.18032]
[1736958194915,8.33e-06,3369.0,3368.4,3.77038]
[1736958195116,8.33e-06,3369.0,3368.3,2.0]
[1736958195328,8.33e-06,3369.0,3368.5,2.96862]
[1736958195530,8.33e-06,3369.0,3368.6,0.02968041]
[1736958195747,8.33e-06,3369.0,3368.9,3.77002]
[1736958196049,8.33e-06,3369.0,3368.9,2.96832]
[1736958196205,8.33e-06,3369.0,3368.7,2.97]
[1736958196206,8.33e-06,3369.0,3368.7,2.96848]
[1736958196397,8.33e-06,3369.0,3368.8,0.212]
[1736958196594,8.33e-06,3369.0,3368.9,2.96832]
[1736958197306,8.33e-06,3369.0,3368.9,3.286352]
[1736958197742,8.33e-06,3369.0,3368.9,2.96832]
[1736958198332,8.33e-06,3369.0,3368.9,3.18032]
[1736958198897,8.33e-06,3369.0,3368.9,9.15032]
[1736958199110,0.1702123,3369.2,3369.1,2.96815]
[1736958199111,6.3e-07,3369.2,3369.1,2.96815]
[1736958199623,6.3e-07,3369.2,3369.1,0.212]
[1736958200251,6.3e-07,3369.2,3369.1,3.18015]
[1736958200443,6.3e-07,3369.2,3368.9,2.9683]
[1736958200668,6.3e-07,3369.2,3369.1,2.96815]
[1736958200952,6.3e-07,3369.2,3369.1,3.18015]
[1736958201166,6.3e-07,3369.2,3368.9,0.65397859]
[1736958201310,6.3e-07,3369.2,3369.1,0.212]
[1736958201511,6.3e-07,3369.2,3368.8,0.60297594]
[1736958201742,6.3e-07,3369.2,3368.9,0.212]
[1736958202253,6.3e-07,3369.2,3368.5,0.8017]
[1736958202409,6.3e-07,3369.2,3368.6,0.212]
[1736958202608,6.3e-07,3369.2,3368.9,2.96831]
[1736958203047,6.3e-07,3369.2,3368.3,2.0]
[1736958203211,6.3e-07,3369.2,3369.0,0.212]
[1736958203631,6.3e-07,3369.2,3367.9,2.0]
[1736958203852,0.7705,3369.1,3367.6,1.39689139]
[1736958204145,2.96842,3368.8,3367.7,0.212]
[1736958204325,2.96842,3368.8,3367.9,2.9692]
[1736958204518,0.7705,3369.1,3367.6,0.8017]
[1736958204519,2.96862,3368.6,3368.0,0.212]
[1736958204721,0.7705,3368.5,3368.0,0.212]
[1736958204946,0.7705,3368.5,3368.1,0.212]
[1736958205365,0.7705,3368.5,3368.2,2.96887]
[1736958205526,0.7705,3368.7,3367.2,0.5806325]
[1736958205846,0.7705,3368.5,3367.3,0.212]
[1736958206047,0.7705,3368.5,3367.1,2.96991]
[1736958206246,0.7705,3368.5,3367.0,0.8017]
[1736958206247,0.7705,3368.5,3367.2,0.212]
[1736958206577,0.7705,3368.5,3367.7,2.96935]
[1736958206729,0.7705,3368.5,3367.7,2.96934]
[1736958206930,0.7705,3368.5,3368.0,2.96907]
[1736958207335,0.7705,3368.5,3368.1,0.212]
[1736958207650,0.7705,3369.1,3368.2,2.96894]
[1736958207985,0.7705,3369.1,3368.5,2.96863]
[1736958208164,0.7705,3369.1,3368.0,2.96909]
[1736958208464,0.7705,3368.6,3368.1,0.212]
[1736958208831,1.144386,3368.6,3368.1,0.212]
[1736958209073,4.112996,3368.6,3368.1,0.212]
[1736958209227,0.7705,3368.6,3368.1,0.212]
[1736958209860,3.7391,3368.6,3368.1,0.212]
[1736958210028,0.7705,3368.6,3368.1,0.212]
[1736958210229,0.02980968,3368.5,3367.3,2.9697]
[1736958210459,0.7705,3368.2,3367.3,2.9697]
[1736958210671,0.7705,3368.2,3367.4,0.216]
[1736958210966,0.7705,3368.6,3367.9,2.96913]
[1736958211169,0.7705,3368.6,3367.6,2.96947]
[1736958211381,0.7705,3368.6,3368.0,2.96904]
[1736958211732,0.7705,3368.6,3368.1,2.96902]
[1736958212226,0.7705,3368.6,3368.2,2.96894]
[1736958212432,0.7705,3369.1,3368.3,0.02968605]
[1736958212662,0.7705,3369.1,3368.4,2.96875]
[1736958212826,0.7705,3369.1,3368.5,0.216]
[1736958213031,0.7705,3369.1,3368.6,0.216]
[1736958213232,0.7705,3369.1,3368.8,2.96839]
[1736958213454,0.7705,3369.1,3368.7,0.216]
[1736958215995,0.7705,3369.1,3368.8,2.96839]
[1736958216264,0.7705,3369.1,3368.6,0.216]
[1736958216265,2.96825,3369.0,3368.6,0.216]
[1736958216489,3.34212506,3369.0,3368.6,0.216]
[1736958216635,0.7705,3369.1,3368.7,0.216]
[1736958216835,0.7705,3369.1,3367.3,2.35599912]
[1736958216836,0.80030968,3369.1,3367.9,2.96917]
[1736958217047,0.7913,3368.8,3368.0,0.216]
[1736958217349,3.75995,3368.6,3368.1,0.216]
[1736958217579,4.13892597,3368.6,3368.1,0.216]
[1736958217901,0.02980968,3368.5,3367.4,2.96963]
[1736958218052,0.7913,3367.8,3367.5,0.216]
[1736958218365,0.7913,3367.8,3366.9,3.4354528]
[1736958218553,3.76061,3367.8,3367.1,0.216]
[1736958218748,4.136671,3367.8,3367.1,0.216]
[1736958218955,0.82110968,3367.7,3367.1,0.216]
[1736958219160,0.7913,3367.7,3367.1,0.216]
[1736958220863,0.7913,3367.7,3367.2,0.216]
[1736958221479,0.82110968,3367.7,3366.5,0.46552899]
[1736958221695,3.76077,3367.6,3366.6,3.18635]
[1736958221995,0.7913,3367.5,3366.5,0.46552899]
[1736958222194,3.76107,3367.3,3366.6,0.216]
[1736958222528,0.7913,3367.3,3366.6,0.216]
[1736958222744,0.7913,3367.3,3366.6,0.5811939]
[1736958223036,0.7913,3367.3,3366.8,2.97016]
[1736958223543,3.93622537,3368.4,3366.6,0.216]
[1736958223544,2.96878,3368.4,3367.3,2.96972]
[1736958224042,3.76024,3368.2,3366.7,2.97026]
[1736958224338,0.376024,3368.1,3366.8,0.6622179]
[1736958224637,0.7913,3367.8,3366.6,3.18628]
[1736958224779,0.7913,3367.8,3366.6,0.216]
[1736958224980,2.96964,3367.5,3366.6,0.216]
[1736958225210,2.96964,3367.5,3366.5,0.46552899]
[1736958225417,3.34871497,3367.5,3366.7,0.216]
[1736958225715,0.37907497,3367.5,3366.7,0.216]
[1736958226013,2.96957,3367.5,3366.7,0.216]
[1736958226218,0.82110968,3367.6,3366.7,0.216]
[1736958226417,0.02980968,3367.5,3366.7,0.216]
[1736958226576,3.76078,3367.6,3366.7,0.216]
[1736958226899,0.7913,3367.6,3366.7,3.18624]
[1736958227420,0.7913,3367.6,3366.8,35.216]
[1736958227715,0.7913,3367.6,3366.8,38.18617]
[1736958228117,0.7913,3367.6,3366.9,2.97007]
[1736958228301,0.7913,3367.6,3366.8,35.216]
[1736958228503,0.82110968,3367.6,3366.8,35.216]
[1736958228708,0.7913,3367.6,3366.8,35.216]
[1736958229085,0.7913,3367.6,3367.1,2.96989]
[1736958229493,0.7913,3367.6,3366.8,35.216]
[1736958229713,0.7913,3367.6,3367.0,2.96999]
[1736958230411,0.7913,3367.6,3366.8,38.18616]
[1736958231340,0.7913,3367.6,3366.8,35.216]
[1736958231491,2.96966,3367.4,3366.8,35.216]
[1736958231693,2.96621039,3367.3,3366.8,35.216]
[1736958231906,2.96621039,3367.3,3366.9,0.216]
[1736958232239,0.82110968,3367.6,3366.8,35.0]
[1736958232240,2.96964,3367.5,3367.0,0.216]
[1736958232525,2.96969,3367.4,3367.0,0.216]
[1736958232724,2.96977,3367.3,3367.0,0.216]
[1736958233019,0.7913,3367.6,3367.0,0.216]
[1736958234121,0.7913,3367.6,3367.0,3.18591]
[1736958234326,0.7913,3367.6,3367.0,0.216]
[1736958234539,0.7913,3367.6,3367.0,3.18597]
[1736958234837,0.7913,3367.6,3367.1,2.96988]
[1736958234990,0.7913,3367.6,3367.0,0.216]
[1736958234991,0.8179,3368.4,3367.0,0.216]
[1736958235295,0.8179,3368.4,3367.4,2.96957]
[1736958235296,3.78667,3368.4,3367.4,2.96957]
[1736958235509,3.78667,3368.4,3367.0,0.216]
[1736958235510,0.8179,3368.4,3367.6,2.96942]
[1736958235913,2.99865968,3368.3,3367.7,35.0]
[1736958236085,2.96902,3368.2,3367.7,35.0]
[1736958236283,0.8179,3368.0,3367.7,35.0]
[1736958236488,0.8179,3368.0,3367.4,0.216]
[1736958236489,3.78706,3368.0,3367.4,0.216]
[1736958236733,0.8179,3368.0,3367.5,0.216]
[1736958236911,0.8179,3368.0,3367.6,0.216]
[1736958237289,0.8179,3368.5,3367.6,3.18543]
[1736958237490,0.8179,3368.5,3367.7,2.96938]
[1736958237689,0.8179,3368.5,3367.8,0.02969188]
[1736958237936,0.8179,3368.5,3367.9,2.96913]
[1736958238095,0.8179,3368.5,3368.0,0.296913]
[1736958238289,0.84770968,3369.0,3367.7,0.7972]
[1736958238514,3.78617,3369.0,3367.9,2.96917]
[1736958238904,3.78614,3369.0,3368.1,2.96901]
[1736958239228,0.8179,3369.0,3368.2,2.96892]
[1736958239423,0.8179,3369.0,3367.9,2.96913]
[1736958239724,0.8179,3369.0,3368.0,0.376633]
[1736958239933,6.3e-07,3369.2,3368.0,0.376633]
[1736958240230,6.3e-07,3369.2,3368.5,2.96865]
[1736958240403,6.3e-07,3369.2,3368.6,37.96853]
[1736958240732,6.3e-07,3369.2,3368.7,0.216]